fUST/lending_fUST_20240301
["ID","MTS","AMOUNT","RATE_DAILY","PERIOD"]
[315878381,1709238646427,-557.41,0.00020999,2]
[315878382,1709238646437,-557.5648113,0.00020999,2]
[315878383,1709238646446,-500.0,0.00020999,2]
[315878384,1709238646456,-500.0,0.00020999,2]
[315878385,1709238646465,-500.0,0.00020999,2]
[315878386,1709238646475,-500.0,0.00020999,2]
[315878387,1709238646484,-414.29708484,0.00020999,2]
[315878388,1709238646543,-85.70291516,0.00020999,2]
[315878389,1709238646553,-500.0,0.00020999,2]
[315878390,1709238646562,-300.32450984,0.00020999,2]
[315878391,1709238646574,-199.67549016,0.00020999,2]
[315878392,1709238646583,-500.0,0.00020999,2]
[315878393,1709238646593,-258.5,0.00020999,2]
[315878394,1709238646603,-632.44,0.00020999,2]
[315878395,1709238646612,-500.0,0.00020999,2]
[315878396,1709238646623,-500.0,0.00020999,2]
[315878397,1709238646632,-500.0,0.00020999,2]
[315878398,1709238646642,-500.0,0.00020999,2]
[315878399,1709238646651,-500.0,0.00020999,2]
[315878400,1709238646661,-500.0,0.00020999,2]
[315878401,1709238646671,-500.0,0.00020999,2]
[315878402,1709238646680,-500.0,0.00020999,2]
[315878403,1709238646690,-500.0,0.00020999,2]
[315878404,1709238646700,-500.0,0.00020999,2]
[315878405,1709238646709,-500.0,0.00020999,2]
[315878406,1709238646718,-626.52,0.00020999,2]
[315878407,1709238646727,-500.0,0.00020999,2]
[315878408,1709238646737,-500.0,0.00020999,2]
[315878409,1709238646746,-391.83294185,0.00020999,2]
[315878410,1709238646755,-164.04,0.00020999,2]
[315878411,1709238646764,-500.9,0.00020999,2]
[315878412,1709238646773,-151.0,0.00020999,2]
[315878413,1709238646783,-500.0,0.00020999,2]
[315878414,1709238646792,-500.0,0.00020999,2]
[315878415,1709238646801,-628.11,0.00020999,2]
[315878416,1709238646810,-538.57,0.00020999,2]
[315878417,1709238646819,-500.0,0.00020999,2]
[315878418,1709238646829,-229.42,0.00020999,2]
[315878419,1709238646838,-320.84269449,0.00020999,2]
[315878420,1709238646850,-403.74247992,0.00020999,2]
[315878421,1709238646865,-226.87752008,0.00020999,2]
[315878422,1709238646874,-94.70291884,0.00020999,2]
[315878434,1709238648627,-500.0,0.00020997,2]
[315878435,1709238648637,-500.0,0.00020997,2]
[315878436,1709238648646,-500.0,0.00020998,2]
[315878437,1709238648655,-500.0,0.00020998,2]
[315878438,1709238648665,-500.0,0.00020998,2]
[315878439,1709238648674,-500.0,0.00020998,2]
[315878440,1709238648684,-187.68100481,0.00020998,2]
[315878441,1709238648693,-7713.70365759,0.00020998,2]
[315878442,1709238648707,-7911.08374962,0.00020998,2]
[315878443,1709238648716,-744.52927298,0.00020998,2]
[315878444,1709238648726,-324.72973504,0.00020998,2]
[315878445,1709238648734,-515.57,0.00020999,2]
[315878446,1709238648746,-500.0,0.00020999,2]
[315878447,1709238648755,-500.0,0.00020999,2]
[315878448,1709238648764,-500.0,0.00020999,2]
[315878449,1709238648774,-500.0,0.00020999,2]
[315878450,1709238648783,-247.17156398,0.00020999,2]
[315878451,1709238648792,-689.02,0.00020999,2]
[315878452,1709238648800,-689.02,0.00020999,2]
[315878453,1709238648810,-689.02,0.00020999,2]
[315878455,1709238648819,-689.02,0.00020999,2]
[315878457,1709238648828,-689.02,0.00020999,2]
[315878458,1709238648837,-689.02,0.00020999,2]
[315878460,1709238648847,-689.02,0.00020999,2]
[315878461,1709238648857,-500.0,0.00020999,2]
[315878463,1709238648866,-689.02,0.00020999,2]
[315878465,1709238648878,-500.0,0.00020999,2]
[315878467,1709238648889,-689.02,0.00020999,2]
[315878469,1709238648899,-526.96,0.00020999,2]
[315878471,1709238648908,-689.02,0.00020999,2]
[315878473,1709238648917,-689.02,0.00020999,2]
[315878475,1709238648926,-689.02,0.00020999,2]
[315878476,1709238648935,-689.02,0.00020999,2]
[315878477,1709238648944,-689.02,0.00020999,2]
[315878478,1709238648954,-689.02,0.00020999,2]
[315878479,1709238648964,-689.02,0.00020999,2]
[315878480,1709238648974,-689.02,0.00020999,2]
[315878481,1709238648983,-689.02,0.00020999,2]
[315878482,1709238648996,-689.02,0.00020999,2]
[315878483,1709238649005,-689.02,0.00020999,2]
[315878484,1709238649014,-689.02,0.00020999,2]
[315878485,1709238649024,-689.18005152,0.00020999,2]
[315878486,1709238649034,-301.894912,0.00020999,2]
[315878487,1709238649043,-301.894912,0.00020999,2]
[315878488,1709238649052,-301.894912,0.00020999,2]
[315878489,1709238649061,-301.894912,0.00020999,2]
[315878490,1709238649070,-500.0,0.00020999,2]
[315878491,1709238649079,-500.0,0.00020999,2]
[315878492,1709238649089,-500.0,0.00020999,2]
[315878493,1709238649098,-500.0,0.00020999,2]
[315878494,1709238649107,-500.0,0.00020999,2]
[315878495,1709238649116,-500.0,0.00020999,2]
[315878496,1709238649125,-500.0,0.00020999,2]
[315878497,1709238649134,-446.36,0.00020999,2]
[315878498,1709238649144,-2000.54,0.00020999,2]
[315878499,1709238649153,-2000.54,0.00020999,2]
[315878500,1709238649162,-2000.54,0.00020999,2]
[315878501,1709238649171,-2000.54,0.00020999,2]
[315878502,1709238649180,-2000.54,0.00020999,2]
[315878503,1709238649189,-2000.54,0.00020999,2]
[315878504,1709238649199,-2000.54,0.00020999,2]
[315878505,1709238649208,-2000.54,0.00020999,2]
[315878506,1709238649218,-2000.54,0.00020999,2]
[315878507,1709238649227,-2000.54,0.00020999,2]
[315878508,1709238649237,-2000.55602998,0.00020999,2]
[315878509,1709238649250,-1380.75,0.00020999,2]
[315878510,1709238649259,-1380.75,0.00020999,2]
[315878511,1709238649269,-1380.75,0.00020999,2]
[315878512,1709238649278,-1380.75,0.00020999,2]
[315878513,1709238649287,-1380.75,0.00020999,2]
[315878514,1709238649297,-1380.75,0.00020999,2]
[315878515,1709238649306,-1380.75,0.00020999,2]
[315878516,1709238649315,-1380.75,0.00020999,2]
[315878517,1709238649324,-1380.75,0.00020999,2]
[315878518,1709238649333,-1380.75,0.00020999,2]
[315878519,1709238649342,-1380.75,0.00020999,2]
[315878520,1709238649353,-1380.75,0.00020999,2]
[315878521,1709238649362,-1380.75,0.00020999,2]
[315878522,1709238649371,-1380.75,0.00020999,2]
[315878523,1709238649380,-1380.75,0.00020999,2]
[315878524,1709238649389,-1380.76181967,0.00020999,2]
[315878525,1709238649398,-509.74,0.00020999,2]
[315878526,1709238649408,-509.74,0.00020999,2]
[315878527,1709238649417,-509.74,0.00020999,2]
[315878528,1709238649426,-509.74,0.00020999,2]
[315878529,1709238649436,-509.74,0.00020999,2]
[315878530,1709238649445,-509.74,0.00020999,2]
[315878531,1709238649454,-509.74,0.00020999,2]
[315878532,1709238649463,-509.74,0.00020999,2]
[315878533,1709238649473,-509.74,0.00020999,2]
[315878534,1709238649482,-509.74,0.00020999,2]
[315878535,1709238649492,-509.74,0.00020999,2]
[315878536,1709238649501,-509.74,0.00020999,2]
[315878537,1709238649512,-509.74,0.00020999,2]
[315878538,1709238649522,-509.74,0.00020999,2]
[315878539,1709238649532,-509.74,0.00020999,2]
[315878540,1709238649541,-509.74,0.00020999,2]
[315878541,1709238649551,-509.74,0.00020999,2]
[315878542,1709238649561,-509.74,0.00020999,2]
[315878543,1709238649652,-509.74,0.00020999,2]
[315878544,1709238649662,-509.97039915,0.00020999,2]
[315878545,1709238649672,-500.0,0.00020999,2]
[315878546,1709238649681,-171.07,0.00020999,2]
[315878547,1709238649691,-500.0,0.00020999,2]
[315878548,1709238649702,-2235.07,0.00020999,2]
[315878549,1709238649712,-2235.07,0.00020999,2]
[315878550,1709238649722,-37.08273006,0.00020999,2]
[315878719,1709239832294,-324.72973504,0.00018854,2]
[315878720,1709239832304,-883.48769579,0.00018855,2]
[315878721,1709239832314,-744.52927298,0.00018856,2]
[315878723,1709239832323,-186.23200973,0.00018856,2]
[315878725,1709239832332,-89.02648568,0.000189,2]
[315878727,1709239832353,-368.49379235,0.000189,2]
[315878728,1709239832363,-577.32663587,0.00020109,2]
[315878747,1709239838898,-184.94127,0.00018854,2]
[315878748,1709239838907,-42.77357134,0.00020109,2]
[315878749,1709239838917,-167.89803646,0.00020186,5]
[315878750,1709239838926,-759.38808101,0.00020299,2]
[315878751,1709239838935,-1006.0,0.00020482,2]
[315878752,1709239838945,-500.0,0.00020547,2]
[315878753,1709239838954,-518.2,0.00020547,2]
[315878754,1709239838963,-500.0,0.00020547,2]
[315878755,1709239838973,-399.09330614,0.00020547,2]
[315878756,1709239838982,-500.0,0.00020547,2]
[315878757,1709239838991,-500.0,0.00020547,2]
[315878758,1709239839000,-500.0,0.00020547,2]
[315878759,1709239839009,-500.0,0.00020547,2]
[315878760,1709239839019,-429.02,0.00020547,2]
[315878761,1709239839027,-500.0,0.00020547,2]
[315878762,1709239839039,-1480.83,0.00020547,2]
[315878763,1709239839048,-1480.83,0.00020547,2]
[315878764,1709239839057,-500.0,0.00020547,2]
[315878765,1709239839066,-1426.34,0.00020547,2]
[315878766,1709239839075,-524.18573504,0.00020547,2]
[315878767,1709239839087,-338.022,0.00020547,2]
[315878768,1709239839099,-564.13226496,0.00020547,2]
[315878769,1709239839108,-598.91334612,0.00020547,2]
[315878770,1709239839118,-500.0,0.00020547,2]
[315878771,1709239839127,-500.0,0.00020547,2]
[315878772,1709239839137,-403.61859012,0.00020547,2]
[315878773,1709239839146,-500.0,0.00020547,2]
[315878774,1709239839155,-500.0,0.00020547,2]
[315878775,1709239839165,-500.0,0.00020547,2]
[315878776,1709239839174,-265.52624922,0.00020547,2]
[315878777,1709239839184,-306.0,0.000206,2]
[315878778,1709239839194,-153.0,0.000206,2]
[315878779,1709239839207,-401.3287632,0.000206,2]
[315878780,1709239839217,-1480.83,0.00020898,2]
[315878781,1709239839227,-1426.34,0.00020898,2]
[315878782,1709239839238,-500.0,0.00020898,2]
[315878783,1709239839249,-462.57,0.00020988,3]
[315878784,1709239839260,-792.08,0.00020988,3]
[315878785,1709239839270,-660.07,0.00020988,3]
[315878786,1709239839282,-550.05,0.00020988,3]
[315878787,1709239839301,-458.38,0.00020988,3]
[315878788,1709239839312,-294.41,0.00020989,3]
[315878789,1709239839324,-883.23,0.00020989,3]
[315878790,1709239839334,-500.0,0.00020996,2]
[315878791,1709239839345,-500.0,0.00020996,2]
[315878792,1709239839356,-555.54,0.00020997,2]
[315878793,1709239839366,-1480.83,0.00020997,2]
[315878794,1709239839376,-1480.83,0.00020997,2]
[315878795,1709239839387,-1480.83,0.00020997,2]
[315878796,1709239839397,-1426.34,0.00020997,2]
[315878797,1709239839408,-1426.34,0.00020997,2]
[315878798,1709239839418,-1426.34,0.00020997,2]
[315878799,1709239839429,-500.0,0.00020997,2]
[315878800,1709239839441,-500.0,0.00020997,2]
[315878801,1709239839452,-500.0,0.00020997,2]
[315878802,1709239839463,-500.0,0.00020997,2]
[315878803,1709239839473,-1674.76,0.00020997,2]
[315878804,1709239839484,-830.81,0.00020997,2]
[315878805,1709239839495,-500.0,0.00020997,2]
[315878806,1709239839507,-500.0,0.00020997,2]
[315878807,1709239839518,-567.72687109,0.00020998,2]
[315878808,1709239839528,-200.09204754,0.00020998,2]
[315878809,1709239839550,-2790.81002196,0.00020998,2]
[315878810,1709239839561,-1480.83,0.00020998,2]
[315878811,1709239839573,-1480.83,0.00020998,2]
[315878812,1709239839583,-1480.83,0.00020998,2]
[315878813,1709239839594,-1480.83,0.00020998,2]
[315878814,1709239839605,-1480.83,0.00020998,2]
[315878815,1709239839615,-1480.83,0.00020998,2]
[315878816,1709239839626,-1480.83,0.00020998,2]
[315878817,1709239839635,-1426.34,0.00020998,2]
[315878818,1709239839646,-1426.34,0.00020998,2]
[315878819,1709239839655,-1426.34,0.00020998,2]
[315878820,1709239839665,-1426.34,0.00020998,2]
[315878821,1709239839675,-1426.34,0.00020998,2]
[315878822,1709239839685,-1426.34,0.00020998,2]
[315878823,1709239839695,-1426.34,0.00020998,2]
[315878824,1709239839706,-500.0,0.00020998,2]
[315878825,1709239839716,-500.0,0.00020998,2]
[315878826,1709239839726,-500.0,0.00020998,2]
[315878827,1709239839735,-500.0,0.00020998,2]
[315878828,1709239839745,-500.0,0.00020998,2]
[315878829,1709239839755,-500.0,0.00020998,2]
[315878830,1709239839764,-1674.76,0.00020998,2]
[315878831,1709239839774,-500.0,0.00020998,2]
[315878832,1709239839789,-1674.76,0.00020998,2]
[315878833,1709239839799,-500.0,0.00020998,2]
[315878834,1709239839809,-1674.76,0.00020998,2]
[315878835,1709239839818,-500.0,0.00020998,2]
[315878836,1709239839828,-830.81,0.00020998,2]
[315878837,1709239839838,-830.81,0.00020998,2]
[315878838,1709239839848,-830.81,0.00020998,2]
[315878839,1709239839858,-607.85,0.00020998,2]
[315878840,1709239839867,-500.0,0.00020998,2]
[315878841,1709239839877,-500.0,0.00020998,2]
[315878842,1709239839887,-316.07662917,0.00020999,2]
[315878843,1709239839897,-1480.83,0.00020999,2]
[315878844,1709239839906,-1480.83,0.00020999,2]
[315878845,1709239839915,-1480.83,0.00020999,2]
[315878846,1709239839925,-1480.83,0.00020999,2]
[315878847,1709239839935,-1480.83,0.00020999,2]
[315878848,1709239839946,-1480.83,0.00020999,2]
[315878849,1709239839955,-1480.83,0.00020999,2]
[315878850,1709239839965,-1480.83,0.00020999,2]
[315878851,1709239839976,-1480.83,0.00020999,2]
[315878852,1709239839986,-1480.83,0.00020999,2]
[315878853,1709239839996,-1480.97993543,0.00020999,2]
[315878854,1709239840006,-1426.34,0.00020999,2]
[315878855,1709239840018,-1426.34,0.00020999,2]
[315878856,1709239840029,-1426.34,0.00020999,2]
[315878857,1709239840045,-1426.34,0.00020999,2]
[315878858,1709239840055,-1426.34,0.00020999,2]
[315878859,1709239840067,-1426.34,0.00020999,2]
[315878860,1709239840078,-1426.34,0.00020999,2]
[315878861,1709239840090,-1426.34,0.00020999,2]
[315878862,1709239840100,-1426.34,0.00020999,2]
[315878863,1709239840111,-1426.34,0.00020999,2]
[315878864,1709239840125,-1426.50849215,0.00020999,2]
[315878865,1709239840136,-500.0,0.00020999,2]
[315878866,1709239840148,-500.0,0.00020999,2]
[315878867,1709239840159,-500.0,0.00020999,2]
[315878868,1709239840171,-500.0,0.00020999,2]
[315878869,1709239840182,-500.0,0.00020999,2]
[315878870,1709239840199,-500.0,0.00020999,2]
[315878871,1709239840210,-500.0,0.00020999,2]
[315878872,1709239840220,-500.0,0.00020999,2]
[315878873,1709239840232,-500.0,0.00020999,2]
[315878874,1709239840243,-500.0,0.00020999,2]
[315878875,1709239840253,-500.0,0.00020999,2]
[315878876,1709239840264,-1674.76,0.00020999,2]
[315878877,1709239840279,-1674.76,0.00020999,2]
[315878878,1709239840294,-500.0,0.00020999,2]
[315878879,1709239840307,-1674.76,0.00020999,2]
[315878880,1709239840318,-500.0,0.00020999,2]
[315878881,1709239840331,-1674.76,0.00020999,2]
[315878882,1709239840342,-500.0,0.00020999,2]
[315878883,1709239840353,-500.0,0.00020999,2]
[315878885,1709239840364,-500.0,0.00020999,2]
[315878886,1709239840375,-1674.76,0.00020999,2]
[315878887,1709239840385,-500.0,0.00020999,2]
[315878888,1709239840396,-500.0,0.00020999,2]
[315878889,1709239840407,-1674.76,0.00020999,2]
[315878890,1709239840417,-500.0,0.00020999,2]
[315878891,1709239840428,-500.0,0.00020999,2]
[315878893,1709239840440,-500.0,0.00020999,2]
[315878894,1709239840451,-500.0,0.00020999,2]
[315878895,1709239840462,-1674.76,0.00020999,2]
[315878896,1709239840473,-535.0,0.00020999,2]
[315878897,1709239840484,-500.0,0.00020999,2]
[315878898,1709239840495,-1674.76,0.00020999,2]
[315878899,1709239840506,-1674.76,0.00020999,2]
[315878900,1709239840517,-500.0,0.00020999,2]
[315878901,1709239840528,-1674.76,0.00020999,2]
[315878902,1709239840542,-500.0,0.00020999,2]
[315878903,1709239840554,-1674.76,0.00020999,2]
[315878904,1709239840565,-500.0,0.00020999,2]
[315878905,1709239840576,-1674.76,0.00020999,2]
[315878906,1709239840586,-387.23708116,0.00020999,2]
[315878907,1709239840596,-1674.76,0.00020999,2]
[315878908,1709239840606,-1674.76,0.00020999,2]
[315878909,1709239840616,-1674.76,0.00020999,2]
[315878910,1709239840626,-1674.76,0.00020999,2]
[315878911,1709239840638,-1674.76,0.00020999,2]
[315878912,1709239840647,-1674.76,0.00020999,2]
[315878913,1709239840656,-1674.76,0.00020999,2]
[315878914,1709239840666,-1674.86231801,0.00020999,2]
[315878915,1709239840675,-830.81,0.00020999,2]
[315878916,1709239840685,-830.81,0.00020999,2]
[315878917,1709239840694,-830.81,0.00020999,2]
[315878918,1709239840703,-830.81,0.00020999,2]
[315878919,1709239840712,-830.81,0.00020999,2]
[315878920,1709239840722,-109.48658987,0.00020999,2]
[315878925,1709239843220,-721.32341013,0.00020999,2]
[315878926,1709239843231,-830.81,0.00020999,2]
[315878927,1709239843240,-830.81,0.00020999,2]
[315878928,1709239843248,-830.81,0.00020999,2]
[315878929,1709239843257,-227.24310487,0.00020999,2]
[315878930,1709239844203,-305.01351869,0.000189,2]
[315878931,1709239844213,-603.56689513,0.00020999,2]
[315878932,1709239844222,-728.95208124,0.00020999,2]
[315878934,1709239848588,-356.75829407,0.00020998,2]
[315878935,1709239848597,-744.52927298,0.00020998,2]
[315878936,1709239848607,-101.85791876,0.00020999,2]
[315878937,1709239848616,-830.81,0.00020999,2]
[315878938,1709239848625,-830.81,0.00020999,2]
[315878939,1709239848635,-830.81,0.00020999,2]
[315878940,1709239848644,-830.81,0.00020999,2]
[315878941,1709239848653,-830.81,0.00020999,2]
[315878942,1709239848662,-830.81,0.00020999,2]
[315878943,1709239848671,-830.81,0.00020999,2]
[315878944,1709239848680,-830.81,0.00020999,2]
[315878945,1709239848690,-830.90284304,0.00020999,2]
[315878947,1709239848699,-500.0,0.00020999,2]
[315878949,1709239848709,-500.0,0.00020999,2]
[315878951,1709239848718,-500.0,0.00020999,2]
[315878953,1709239848728,-500.0,0.00020999,2]
[315878955,1709239848737,-500.0,0.00020999,2]
[315878957,1709239848746,-500.0,0.00020999,2]
[315878958,1709239848756,-500.0,0.00020999,2]
[315878960,1709239848766,-583.56995199,0.00020999,2]
[315878961,1709239848776,-500.0,0.00020999,2]
[315878962,1709239848786,-500.0,0.00020999,2]
[315878964,1709239848796,-185.90994813,0.00020999,2]
[315878965,1709239848805,-456.25157963,0.00020999,2]
[315878967,1709239848814,-416.99443606,0.00020999,2]
[315878969,1709239848824,-500.0,0.00020999,2]
[315878970,1709239848833,-162.53215722,0.00020999,2]
[315878972,1709239848842,-500.0,0.00020999,2]
[315878973,1709239848851,-500.0,0.00020999,2]
[315878975,1709239848861,-6087.84008512,0.00021,2]
[315878977,1709239848873,-509.12436713,0.00021,2]
[315879084,1709241035361,-324.72973504,0.00018869,2]
[315879086,1709241035372,-744.52927298,0.0001887,2]
[315879088,1709241035382,-203.34234579,0.000189,2]
[315879090,1709241035392,-1548.98232661,0.00019988,4]
[315879092,1709241035401,-20840.0,0.00020185,2]
[315879094,1709241035411,-2625.0,0.00020186,5]
[315879096,1709241035421,-500.0,0.00020547,2]
[315879098,1709241035431,-500.0,0.00020547,2]
[315879100,1709241035440,-500.0,0.00020547,2]
[315879102,1709241035450,-500.0,0.00020547,2]
[315879104,1709241035459,-500.0,0.00020547,2]
[315879106,1709241035470,-500.0,0.00020547,2]
[315879108,1709241035479,-630.18,0.00020547,2]
[315879110,1709241035494,-500.0,0.00020898,2]
[315879112,1709241035503,-500.0,0.00020898,2]
[315879114,1709241035513,-271.02,0.00020898,2]
[315879116,1709241035523,-381.98,0.00020989,3]
[315879118,1709241035532,-318.32,0.00020989,3]
[315879119,1709241035542,-265.27,0.00020989,3]
[315879120,1709241035552,-221.05,0.00020989,3]
[315879121,1709241035565,-588.82,0.0002099,3]
[315879122,1709241035574,-500.0,0.00020995,2]
[315879123,1709241035583,-500.0,0.00020995,2]
[315879124,1709241035594,-500.0,0.00020995,2]
[315879125,1709241035607,-464.57165753,0.00020995,2]
[315879126,1709241035620,-500.0,0.00020996,2]
[315879127,1709241035630,-500.0,0.00020996,2]
[315879128,1709241035640,-500.0,0.00020996,2]
[315879129,1709241035650,-627.46860246,0.00020996,2]
[315879130,1709241035659,-500.0,0.00020996,2]
[315879131,1709241035669,-500.0,0.00020996,2]
[315879132,1709241035679,-600.0,0.00020996,2]
[315879133,1709241035689,-644.43,0.00020996,2]
[315879134,1709241035699,-500.0,0.00020996,2]
[315879135,1709241035708,-500.0,0.00020996,2]
[315879136,1709241035718,-500.0,0.00020996,2]
[315879137,1709241035728,-500.0,0.00020996,2]
[315879138,1709241035738,-500.0,0.00020996,2]
[315879139,1709241035748,-603.39,0.00020996,2]
[315879140,1709241035757,-594.46,0.00020996,2]
[315879141,1709241035767,-500.0,0.00020996,2]
[315879142,1709241035776,-500.0,0.00020996,2]
[315879143,1709241035785,-500.0,0.00020996,2]
[315879144,1709241035795,-584.14,0.00020996,2]
[315879145,1709241035804,-500.0,0.00020996,2]
[315879146,1709241035814,-500.0,0.00020996,2]
[315879147,1709241035823,-500.0,0.00020996,2]
[315879148,1709241035832,-500.0,0.00020996,2]
[315879149,1709241035842,-500.0,0.00020996,2]
[315879150,1709241035851,-500.0,0.00020996,2]
[315879151,1709241035860,-617.38,0.00020996,2]
[315879152,1709241035869,-500.0,0.00020996,2]
[315879153,1709241035879,-500.0,0.00020997,2]
[315879154,1709241035888,-500.0,0.00020997,2]
[315879155,1709241035897,-500.0,0.00020997,2]
[315879156,1709241035907,-407.98726738,0.00020997,2]
[315879157,1709241035916,-500.0,0.00020997,2]
[315879158,1709241035925,-500.0,0.00020997,2]
[315879159,1709241035935,-500.0,0.00020997,2]
[315879160,1709241035944,-500.0,0.00020997,2]
[315879161,1709241035954,-500.0,0.00020997,2]
[315879162,1709241035963,-500.0,0.00020997,2]
[315879163,1709241035973,-500.0,0.00020997,2]
[315879164,1709241035983,-284.52939618,0.00020998,2]
[315879165,1709241035995,-266.32,0.00020998,2]
[315879166,1709241036004,-500.0,0.00020998,2]
[315879167,1709241036016,-500.0,0.00020998,2]
[315879168,1709241036026,-500.0,0.00020998,2]
[315879169,1709241036036,-500.0,0.00020998,2]
[315879170,1709241036045,-500.0,0.00020998,2]
[315879171,1709241036054,-500.0,0.00020998,2]
[315879172,1709241036064,-500.0,0.00020998,2]
[315879173,1709241036074,-500.0,0.00020998,2]
[315879174,1709241036083,-180.94,0.00020998,2]
[315879175,1709241036093,-500.0,0.00020998,2]
[315879176,1709241036102,-490.14,0.00020998,2]
[315879177,1709241036111,-500.0,0.00020998,2]
[315879178,1709241036121,-500.0,0.00020998,2]
[315879179,1709241036130,-500.0,0.00020998,2]
[315879180,1709241036140,-500.0,0.00020998,2]
[315879181,1709241036150,-1000.0,0.00020999,2]
[315879182,1709241036159,-500.0,0.00020999,2]
[315879183,1709241036169,-500.0,0.00020999,2]
[315879184,1709241036178,-177.79,0.00020999,2]
[315879185,1709241036188,-500.0,0.00020999,2]
[315879186,1709241036197,-320.61,0.00020999,2]
[315879187,1709241036206,-390.53,0.00020999,2]
[315879188,1709241036217,-603.39,0.00020999,2]
[315879189,1709241036226,-603.39,0.00020999,2]
[315879190,1709241036236,-603.39,0.00020999,2]
[315879191,1709241036248,-603.39,0.00020999,2]
[315879192,1709241036258,-603.39,0.00020999,2]
[315879193,1709241036267,-603.39,0.00020999,2]
[315879194,1709241036278,-603.39,0.00020999,2]
[315879195,1709241036287,-603.39,0.00020999,2]
[315879196,1709241036296,-603.39,0.00020999,2]
[315879197,1709241036306,-603.39,0.00020999,2]
[315879198,1709241036315,-603.39,0.00020999,2]
[315879199,1709241036324,-500.0,0.00020999,2]
[315879200,1709241036334,-603.39,0.00020999,2]
[315879201,1709241036344,-500.0,0.00020999,2]
[315879202,1709241036354,-603.39,0.00020999,2]
[315879203,1709241036363,-500.0,0.00020999,2]
[315879204,1709241036372,-218.34626525,0.00020999,2]
[315879231,1709241038459,-385.04373475,0.00020999,2]
[315879232,1709241038469,-500.0,0.00020999,2]
[315879233,1709241038478,-603.39,0.00020999,2]
[315879234,1709241038487,-494.95551534,0.00020999,2]
[315879266,1709241043480,-5.04448466,0.00020999,2]
[315879267,1709241043491,-500.0,0.00020999,2]
[315879268,1709241043509,-603.39,0.00020999,2]
[315879269,1709241043521,-500.0,0.00020999,2]
[315879270,1709241043531,-500.0,0.00020999,2]
[315879271,1709241043543,-603.39,0.00020999,2]
[315879272,1709241043554,-366.5076055,0.00020999,2]
[315879273,1709241043568,-500.0,0.00020999,2]
[315879274,1709241043579,-500.0,0.00020999,2]
[315879276,1709241043589,-466.98,0.00020999,2]
[315879278,1709241043601,-603.39,0.00020999,2]
[315879280,1709241043612,-603.39,0.00020999,2]
[315879282,1709241043624,-603.39,0.00020999,2]
[315879284,1709241043634,-603.39,0.00020999,2]
[315879286,1709241043646,-603.39,0.00020999,2]
[315879288,1709241043656,-603.58,0.00020999,2]
[315879290,1709241043667,-566.09,0.00020999,2]
[315879292,1709241043677,-240.23,0.00020999,2]
[315879294,1709241043688,-500.0,0.00020999,2]
[315879296,1709241043701,-500.0,0.00020999,2]
[315879298,1709241043711,-500.0,0.00020999,2]
[315879300,1709241043721,-500.0,0.00020999,2]
[315879302,1709241043732,-500.0,0.00020999,2]
[315879304,1709241043742,-417.21,0.00020999,2]
[315879306,1709241043757,-543.27,0.00020999,2]